[Event "FIDE WY-U16 Olympiad 2022"]
[Site "Nakhchivan"]
[Date "2022.10.03"]
[Round "2.27"]
[White "Hernandez Izquierdo, Jose A."]
[Black "Sakline Mostafa, Sajid"]
[Result "1-0"]
[ECO "B40"]
[WhiteElo "2140"]
[BlackElo "2001"]
[Annotator "TA"]
[PlyCount "67"]
[EventDate "2022.10.02"]
[EventType "team-tourn"]
[EventCountry "AZE"]
[SourceTitle "playchess.com"]
[Source "ChessBase"]
[SourceQuality "1"]
[WhiteTeam "Cuba"]
[BlackTeam "Bangladesh"]
[WhiteTeamCountry "CUB"]
[BlackTeamCountry "BAN"]
[TimeControl "40/5400+30:1800+30"]

{[%evp 17,67,0,0,0,15,0,0,-7,0,-4,14,12,23,16,37,18,19,16,30,30,30,11,57,53,54,27,202,184,251,254,536,536,536,531,518,519,1197,1163,29978,29979,29971,6539,29988,29989,29989,29990,29990,29991,29993,29994,29995,29996]} 1. e4 {[%emt 0:00:06]} c5 {[%emt 0:00:04]} 2. Nf3 {[%emt 0:00:09]} e6 {[%emt 0:00:12]} 3. d4 {[%emt 0:00:07]} cxd4 {[%emt 0:00:02]} 4. Nxd4 {[%emt 0:00:08]} Nf6 {[%emt 0:00:06]} 5. Bd3 {[%emt 0:00:24]} Nc6 {[%emt 0:00:27]} 6. Nxc6 {[%emt 0:00:27]} bxc6 {[%emt 0:00:04]} 7. Nc3 {[%emt 0:00:08]} d5 {[%emt 0:00:08]} 8. O-O {[%emt 0:00:15]} Be7 {[%emt 0:03:09]} 9. Bf4 {[%emt 0:01:33]} O-O {[%emt 0:01:26]} 10. Qf3 {[%emt 0:01:14] [#] B40: Sicilian: 2...e6, Unusual lines.} g6 $146 {[%emt 0:03:48]} ({Predecessor:} 10... Qb6 11. e5 Nd7 12. Na4 Qd4 13. b3 Nxe5 14. Bxh7+ Kxh7 15. Qh5+ Kg8 16. Qxe5 Qxe5 17. Bxe5 c5 {0-1 (44) Stojcevski,Z (2338)-Perunovic,M (2624) Skopje 2015}) 11. Bh6 {[%emt 0:04:20]} Re8 {[%emt 0:02:13]} 12. Rfe1 {[%emt 0:01:18] The position is equal.} Rb8 {[%emt 0:08:50]} 13. Rab1 $132 {[%emt 0:11:09][%mdl 2048] White is fighting back} d4 {[%emt 0:04:50]} 14. e5 {[%emt 0:10:28]} Nd7 {[%emt 0:15:03]} 15. Na4 {[%emt 0:04:13]} Qc7 {[%emt 0:02:36]} 16. Qf4 {[%emt 0:09:37]} c5 {[%emt 0:06:44]} 17. b3 {[%emt 0:04:40]} Nb6 {[%emt 0:00:57]} 18. Nxb6 {[%emt 0:00:48]} axb6 {[%emt 0:00:31]} 19. a4 {[%emt 0:01:06]} Bb7 {[%emt 0:02:34]} (19... Bd7 $11 {should be considered.}) 20. h4 $1 $14 {[%emt 0:02:31][%cal Bh2h4,Bh4h5][%mdl 32]} Bf8 {[%emt 0:04:59]} 21. h5 {[%emt 0:07:24]} Qd8 $2 {[%emt 0:04:15] [#] A mistake that costs the game.} (21... Bxh6 $11 22. Qxh6 Qe7) 22. Bg5 $1 $18 {[%emt 0:04:02]} Be7 {[%emt 0:01:24] [#]} (22... Qc8 $142 23. Rbd1 Bd5) 23. Bf6 $1 {[%emt 0:00:26]} Qc7 $2 {[%emt 0:06:04]} (23... Bc6 {was necessary.} 24. f3 Bxf6 25. exf6 Rb7) 24. Qg5 {[%emt 0:02:00][%cal Rh5g6]} Bf8 {[%emt 0:01:31]} 25. f3 {[%emt 0:02:37]} Bd5 {[%emt 0:01:42]} 26. Kf2 {[%emt 0:03:05][%cal Rh5g6]} c4 {[%emt 0:04:58]} (26... Bg7 $142 27. Bxg7 Kxg7 28. Qf6+ Kg8) 27. bxc4 {[%emt 0:00:40]} Bxc4 {[%emt 0:00:19]} 28. hxg6 {[%emt 0:00:45]} fxg6 {[%emt 0:01:00] [#]} 29. Bxg6 $1 {[%emt 0:00:08][%mdl 512]} hxg6 {[%emt 0:00:30]} (29... Bf1 30. Bxe8+) 30. Qxg6+ {[%emt 0:00:01] White mates.} Bg7 {[%emt 0:00:01]} 31. Rh1 {[%emt 0:00:20]} Re7 {[%emt 0:03:18]} 32. Rh7 {[%emt 0:01:29]} Bd3 {[%emt 0:06:47]} 33. cxd3 {[%emt 0:00:23]} Qc2+ {[%emt 0:00:28]} 34. Kg3 {[%emt 0:00:09] Weighted Error Value: White=0.03 (flawless) /Black=0.69} 1-0

[Event "FIDE WY-U16 Olympiad 2022"]
[Site "Nakhchivan"]
[Date "2022.10.03"]
[Round "2.27"]
[White "Subramanian, Anusha"]
[Black "Jacobs, Elsje"]
[Result "1-0"]
[ECO "A06"]
[WhiteElo "1840"]
[BlackElo "1168"]
[Annotator "NA COMBH"]
[PlyCount "55"]
[EventDate "2022.10.02"]
[EventType "team-tourn"]
[EventCountry "AZE"]
[SourceTitle "playchess.com"]
[Source "ChessBase"]
[SourceQuality "1"]
[WhiteTeam "England"]
[BlackTeam "South Africa"]
[WhiteTeamCountry "ENG"]
[BlackTeamCountry "RSA"]
[TimeControl "40/5400+30:1800+30"]

1. Nf3 {[%emt 0:00:02]} d5 {[%emt 0:00:12]} 2. c4 {[%emt 0:00:05]} Nf6 {[%emt 0:00:11]} 3. g3 {[%emt 0:00:08]} Nc6 {[%emt 0:00:12]} 4. cxd5 {[%emt 0:00:37]} Nxd5 {[%emt 0:00:16]} 5. Nc3 {[%emt 0:00:39]} Nxc3 {[%emt 0:00:50]} 6. bxc3 {[%emt 0:00:03]} g6 {[%emt 0:00:18]} 7. Bg2 {[%emt 0:00:14]} Bg7 {[%emt 0:00:08]} 8. d4 {[%emt 0:00:49]} Bf5 {[%emt 0:01:36]} 9. O-O {[%emt 0:01:17]} Qd7 {[%emt 0:02:01]} 10. Re1 {[%emt 0:03:46]} Rd8 {[%emt 0:01:23]} 11. e4 {[%emt 0:03:26]} Bg4 {[%emt 0:00:21]} 12. Qc2 {[%emt 0:04:22]} O-O {[%emt 0:00:44]} 13. Bb2 {[%emt 0:05:36]} Rfe8 {[%emt 0:03:37]} 14. d5 {[%emt 0:06:06]} Na5 {[%emt 0:01:00]} 15. Nd2 {[%emt 0:07:28]} c6 {[%emt 0:02:21]} 16. c4 {[%emt 0:08:07]} Bxb2 {[%emt 0:03:15]} 17. Qxb2 {[%emt 0:00:03]} cxd5 {[%emt 0:00:24]} 18. cxd5 {[%emt 0:02:57]} e5 {[%emt 0:03:46]} 19. Bf1 {[%emt 0:04:44]} f5 {[%emt 0:02:30]} 20. Bb5 {[%emt 0:03:22]} Nc6 {[%emt 0:03:14]} 21. dxc6 {[%emt 0:10:23]} bxc6 {[%emt 0:01:01]} 22. Bc4+ {[%emt 0:01:05]} Kg7 {[%emt 0:02:08]} 23. Nf1 {[%emt 0:09:50]} fxe4 {[%emt 0:00:39]} 24. Rxe4 {[%emt 0:01:58]} Qf5 {[%emt 0:00:20]} 25. Rae1 {[%emt 0:01:33]} Bf3 {[%emt 0:00:40]} 26. Rxe5 {[%emt 0:01:19]} Qh3 {[%emt 0:05:37]} 27. Rh5+ {[%emt 0:00:55]} Kf8 {[%emt 0:02:50]} 28. Qf6# {[%emt 0:00:14]} 1-0

[Event "FIDE WY-U16 Olympiad 2022"]
[Site "Nakhchivan"]
[Date "2022.10.03"]
[Round "2.28"]
[White "Sajidul, Haque"]
[Black "Caballero Ramos, Greter"]
[Result "0-1"]
[ECO "A45"]
[WhiteElo "1918"]
[BlackElo "1912"]
[Annotator "TA"]
[PlyCount "96"]
[EventDate "2022.10.02"]
[EventType "team-tourn"]
[EventCountry "AZE"]
[TimeControl "40/5400+30:1800+30"]

{[%evp 11,96,-18,0,-10,-16,-19,-6,-25,-11,-24,-28,-67,-51,-60,-54,-54,-50,-47,-18,-94,-69,-66,-64,-107,-106,-104,-94,-220,-194,-191,-191,-209,-195,-283,-258,-567,-450,-490,-478,-475,-422,-435,-433,-403,-187,-170,-189,-184,-180,-166,-166,-223,-203,-214,-210,-219,-229,-283,-267,-370,-356,-438,-442,-532,-534,-495,-502,-794,-775,-960,-976,-1176,-1167,-5848,-5679,-2278,-1234,-2006,-1691,-29968,-29966,-29966,-29943,-29962,-29966,-6148,-6106]} 1. d4 {[%emt 0:00:05]} Nf6 {[%emt 0:00:10]} 2. Bf4 {[%emt 0:00:07]} d5 {[%emt 0:00:18]} 3. e3 {[%emt 0:00:06]} e6 {[%emt 0:00:10]} 4. Nf3 {[%emt 0:00:07]} Bd6 {[%emt 0:00:15]} 5. Bg3 {[%emt 0:00:20]} O-O {[%emt 0:00:24]} 6. Bd3 {[%emt 0:00:39]} c5 {[%emt 0:00:11]} 7. c3 {[%emt 0:06:00] D02: 1 d4 d5 2 Nf3 sidelines, including 2...Nf6 3 g3 and 2...Nf6 3 Bf4.} Qc7 $1 {[%emt 0:00:08][%mdl 4] is now more promising than 7...Nc6.} 8. Ne5 {[%emt 0:01:41]} Nc6 {[%emt 0:05:28][%cal Bb8c6,Bc6e7,Be7f5][%mdl 32]} 9. f4 {[%emt 0:01:18] The position is equal.} Ne7 {[%emt 0:01:09]} 10. Bh4 {[%emt 0:04:40]} Ne4 {[%emt 0:05:28]} 11. Nd2 {[%emt 0:01:36]} Nf5 {[%emt 0:12:17][%csl LRe3,LRh4] [#]} 12. Bxe4 $146 {[%emt 0:02:03]} ({Predecessor:} 12. Bf2 Nxf2 13. Kxf2 f6 14. Nef3 e5 15. g4 Nxe3 16. Kxe3 e4 17. Bxe4 dxe4 18. Nxe4 {0-1 (26) Czopor,M (2427)-Fromm,M (2343) Chess.com INT 2021}) 12... dxe4 {[%emt 0:00:30]} (12... Nxh4 13. Bxh7+ $1 Kxh7 14. Qh5+ Kg8 15. Qxh4 $16) 13. Bf2 {[%emt 0:01:02]} f6 $36 {[%emt 0:01:56][%mdl 2048] Strongly threatening ...cxd4. Black has the initiative.} 14. Nec4 {[%emt 0:00:18]} b5 {[%emt 0:08:12]} 15. Na3 {[%emt 0:00:29]} (15. Nxd6 $11 {keeps the balance.} Nxd6 16. Nb3) 15... Bxf4 {[%emt 0:05:52]} 16. exf4 {[%emt 0:03:25]} e3 {[%emt 0:03:32]} 17. Bxe3 {[%emt 0:01:31]} Nxe3 {[%emt 0:00:30]} 18. Qf3 {[%emt 0:01:06]} cxd4 {[%emt 0:04:39] Black is more active.} (18... Qxf4 19. Qxa8 b4 20. Nac4 (20. dxc5 $2 bxa3 21. Qf3 Nc2+ 22. Kd1 Qxf3+ 23. gxf3 Nxa1 $19) (20. g3 Qg4 $14) 20... bxc3 21. bxc3 Nxc4 22. Nxc4 $16) 19. Nxb5 {[%emt 0:03:22] This move loses the game for White.} (19. Qxa8 $2 {too greedy.} Bb7 20. Qxa7 (20. Nxb5 $2 Nxg2+ 21. Kd1 Ne3+ 22. Ke1 Ng2+ 23. Kd1 Ne3+ 24. Ke1 Qc6 $19) 20... Nxg2+ 21. Kd1 Bf3+ $1 {[%mdl 512]} 22. Nxf3 Qxa7 23. Nxd4 Nxf4 $19) (19. cxd4 $17 Nxg2+ 20. Qxg2) 19... Qb8 {[%emt 0:06:30]} 20. Nxd4 {[%emt 0:06:05]} Qxb2 {[%emt 0:03:37]} 21. Rb1 {[%emt 0:00:46]} Qxc3 {[%emt 0:00:12]} 22. Qxa8 {[%emt 0:05:01]} (22. Ne2 $142 Nc2+ 23. Kd1 Qxf3 24. Nxf3 Ne3+ 25. Ke1) 22... Qxd4 $19 {[%emt 0:00:05]} 23. Qc6 {[%emt 0:19:41] Inhibits Nc2+.} (23. Qe4 {nothing else works.} Qc3 24. Rb3 Qc1+ 25. Ke2 Qxh1 26. Rxe3) 23... Rd8 {[%emt 0:03:23][%csl Gd8][%cal Rd4d2]} 24. Nb3 {[%emt 0:01:30]} Qd3 {[%emt 0:02:14]} ({Wrong is} 24... Qxf4 $2 25. Rb2 $19) 25. Rc1 {[%emt 0:12:48]} Ba6 {[%emt 0:00:41][%csl Ga6][%cal Rd3e2]} 26. Qf3 {[%emt 0:00:57] [#] Against Qe2+} Nxg2+ $1 {[%emt 0:04:32][%mdl 512]} 27. Kf2 {[%emt 0:00:38] [#]} Qxf3+ {[%emt 0:00:27] Chess con chili.} (27... Nxf4 $142 $1 {[%mdl 512] aiming for ...Nh3+.} 28. Qxd3 Nxd3+ 29. Ke3 Nxc1 30. Rxc1 Rd7) 28. Kxf3 {[%emt 0:00:01]} Bb7+ {[%emt 0:00:03]} 29. Kf2 {[%emt 0:01:21]} Nxf4 {[%emt 0:01:53]} 30. Rhd1 {[%emt 0:00:23] [#]} Rd3 {[%emt 0:06:18]} 31. Nc5 {[%emt 0:03:07]} (31. Na5 $142 Rf3+ 32. Ke1) 31... Rf3+ {[%emt 0:00:16]} 32. Ke1 {[%emt 0:00:14] Hoping for Rd8+.} Bd5 {[%emt 0:00:51] And now ...Re3+ would win.} 33. Rd2 {[%emt 0:04:25]} g5 {[%emt 0:05:11]} 34. a4 {[%emt 0:01:59]} h5 {[%emt 0:00:45][%cal Bh7h5,Bh5h4][%mdl 32]} 35. a5 {[%emt 0:01:44]} h4 {[%emt 0:00:56]} 36. Rf2 {[%emt 0:06:51]} Ra3 {[%emt 0:01:45]} 37. a6 {[%emt 0:00:20]} Kg7 {[%emt 0:03:37]} 38. Rb1 {[%emt 0:01:28]} Ra5 {[%emt 0:00:34]} 39. Rb7+ {[%emt 0:04:08]} (39. Nb7 $142 Nd3+ 40. Kf1 Rxa6 41. Rc2) 39... Kg6 {[%emt 0:00:18]} 40. Rxa7 {[%emt 0:06:11]} Rxc5 {[%emt 0:00:08]} 41. Rd2 {[%emt 0:30:45] Prevents Nd3+.} Ra5 {[%emt 0:30:20]} 42. Kf2 {[%emt 0:00:32]} g4 {[%emt 0:00:21] ( -> ...Ra3)} 43. Ke3 {[%emt 0:00:33]} Kf5 {[%emt 0:00:18] ...g3 is the strong threat.} 44. Rb2 {[%emt 0:00:33]} g3 {[%emt 0:00:39] White must now prevent ...Ra3+.} 45. hxg3 {[%emt 0:00:00]} hxg3 {[%emt 0:00:00]} 46. Rg7 {[%emt 0:00:00]} Rxa6 {[%emt 0:00:00]} 47. Rxg3 {[%emt 0:00:00]} Ra3+ {[%emt 0:00:00]} 48. Kf2 {[%emt 0:00:00]} Nh3+ {[%emt 0:00:00] Weighted Error Value: White=0.97/Black=0.39} 0-1

[Event "FIDE WY-U16 Olympiad 2022"]
[Site "Nakhchivan"]
[Date "2022.10.03"]
[Round "2.28"]
[White "Goliath, Brimarion"]
[Black "Dasgupta, Avyukt"]
[Result "1/2-1/2"]
[ECO "C10"]
[WhiteElo "1394"]
[BlackElo "1741"]
[Annotator "NA RC COMBH"]
[PlyCount "50"]
[EventDate "2022.10.02"]
[EventType "team-tourn"]
[EventCountry "AZE"]
[SourceTitle "playchess.com"]
[Source "ChessBase"]
[SourceQuality "1"]
[WhiteTeam "South Africa"]
[BlackTeam "England"]
[WhiteTeamCountry "RSA"]
[BlackTeamCountry "ENG"]
[TimeControl "40/5400+30:1800+30"]

1. e4 {[%emt 0:00:04]} e6 {[%emt 0:00:13]} 2. d4 {[%emt 0:00:27]} d5 {[%emt 0:00:16]} 3. Nd2 {[%emt 0:00:32]} dxe4 {[%emt 0:00:08]} 4. Nxe4 {[%emt 0:00:23]} Bd7 {[%emt 0:00:07]} 5. Nf3 {[%emt 0:00:43]} Bc6 {[%emt 0:00:07]} 6. Bd3 {[%emt 0:00:28]} Nd7 {[%emt 0:00:05]} 7. Qe2 {[%emt 0:01:14]} Ngf6 {[%emt 0:00:08]} 8. Bg5 {[%emt 0:00:34]} Be7 {[%emt 0:00:10]} 9. Bxf6 {[%emt 0:03:19]} Bxf6 {[%emt 0:00:14]} 10. O-O {[%emt 0:01:32]} O-O {[%emt 0:00:35]} 11. c3 {[%emt 0:01:49]} g6 {[%emt 0:08:47]} 12. Nxf6+ {[%emt 0:05:00]} Qxf6 {[%emt 0:00:09]} 13. Be4 {[%emt 0:00:41]} Bxe4 {[%emt 0:00:49]} 14. Qxe4 {[%emt 0:00:15]} c6 {[%emt 0:00:11]} 15. Rfe1 {[%emt 0:00:54]} Rfd8 {[%emt 0:01:38]} 16. Rad1 {[%emt 0:10:21]} Nb6 {[%emt 0:08:46]} 17. Ne5 {[%emt 0:01:21]} Nd5 {[%emt 0:00:32]} 18. Rd3 {[%emt 0:00:37]} Qg7 {[%emt 0:18:11]} 19. Rf3 {[%emt 0:03:26]} Rf8 {[%emt 0:00:42]} 20. Nd7 {[%emt 0:13:57]} Rfd8 {[%emt 0:11:38]} 21. Ne5 {[%emt 0:01:21]} Rf8 {[%emt 0:00:55]} 22. Nd7 {[%emt 0:01:33]} Rfd8 {[%emt 0:00:48]} 23. Ne5 Rf8 {[%emt 0:27:20]} 24. Nd7 {[%emt 0:00:36]} Rfd8 {[%emt 0:00:08]} 25. Ne5 {[%emt 0:00:09]} Rf8 {[%emt 0:00:06]} 1/2-1/2

[Event "FIDE WY-U16 Olympiad 2022"]
[Site "Nakhchivan"]
[Date "2022.10.03"]
[Round "2.29"]
[White "Levitan, Judah Nathan"]
[Black "Davudov, Tunar"]
[Result "0-1"]
[ECO "D00"]
[WhiteElo "1725"]
[BlackElo "1868"]
[Annotator "NA RC COMBH"]
[PlyCount "120"]
[EventDate "2022.10.02"]
[EventType "team-tourn"]
[EventCountry "AZE"]
[SourceTitle "playchess.com"]
[Source "ChessBase"]
[SourceQuality "1"]
[WhiteTeam "South Africa"]
[BlackTeam "Azerbaijan"]
[WhiteTeamCountry "RSA"]
[BlackTeamCountry "AZE"]
[TimeControl "40/5400+30:1800+30"]

1. d4 {[%emt 0:00:03]} d5 {[%emt 0:00:07]} 2. Bf4 {[%emt 0:00:04]} Nf6 {[%emt 0:00:10]} 3. e3 {[%emt 0:00:04]} e6 {[%emt 0:00:24]} 4. Nd2 {[%emt 0:00:05]} Bd6 {[%emt 0:00:24]} 5. Ngf3 {[%emt 0:00:41]} O-O {[%emt 0:00:29]} 6. Bd3 {[%emt 0:00:40]} c5 {[%emt 0:00:21]} 7. c3 {[%emt 0:00:21]} Nc6 {[%emt 0:00:42]} 8. Bg3 {[%emt 0:00:27]} b6 {[%emt 0:06:59]} 9. e4 {[%emt 0:00:05]} dxe4 {[%emt 0:06:03]} 10. Nxe4 {[%emt 0:00:06]} Nxe4 {[%emt 0:01:04]} 11. Bxe4 {[%emt 0:00:04]} Bb7 {[%emt 0:01:52]} 12. dxc5 {[%emt 0:01:24]} Bxc5 {[%emt 0:00:24]} 13. Qa4 {[%emt 0:00:09]} Rc8 {[%emt 0:21:29]} 14. Rd1 {[%emt 0:00:13]} Qe7 {[%emt 0:04:31]} 15. b4 {[%emt 0:00:34]} Nxb4 {[%emt 0:11:12]} 16. Bxb7 Qxb7 17. cxb4 {[%emt 0:01:58]} Qe4+ {[%emt 0:00:38]} 18. Kf1 {[%emt 0:00:29]} a5 {[%emt 0:01:46]} 19. Ne5 {[%emt 0:04:10]} Bxb4 {[%emt 0:07:23]} 20. a3 {[%emt 0:09:19]} Rc2 {[%emt 0:05:54]} 21. Qb5 {[%emt 0:00:14]} Rd2 {[%emt 0:10:26]} 22. Re1 {[%emt 0:38:41]} Qxe1+ {[%emt 0:01:06]} 23. Kxe1 {[%emt 0:00:06]} Rd5+ {[%emt 0:00:05]} 24. Qxb4 {[%emt 0:01:52]} axb4 {[%emt 0:00:03]} 25. Nc6 {[%emt 0:01:42]} Rc5 {[%emt 0:01:00]} 26. Ne7+ {[%emt 0:00:05]} Kh8 27. Ke2 {[%emt 0:01:03]} bxa3 {[%emt 0:01:11]} 28. Bd6 {[%emt 0:00:30]} Rc2+ {[%emt 0:00:10]} 29. Kd3 {[%emt 0:00:22]} Rxf2 {[%emt 0:00:10]} 30. Ke3 {[%emt 0:00:57]} Rxg2 {[%emt 0:01:43]} 31. Ng6+ {[%emt 0:00:23]} hxg6 {[%emt 0:00:02]} 32. Bxf8 {[%emt 0:00:08]} a2 {[%emt 0:00:02]} 33. Bd6 {[%emt 0:01:53]} b5 {[%emt 0:00:58]} 34. Kd3 {[%emt 0:00:36]} b4 {[%emt 0:00:51]} 35. Kc4 {[%emt 0:02:02]} Rb2 {[%emt 0:00:05]} 36. Ra1 {[%emt 0:00:27]} b3 {[%emt 0:00:03]} 37. Be5 {[%emt 0:00:43]} Rb1 {[%emt 0:00:03]} 38. Kb4 {[%emt 0:00:41]} f6 {[%emt 0:00:05]} 39. Bc3 {[%emt 0:00:25]} e5 {[%emt 0:00:19]} 40. Kc4 {[%emt 0:01:54]} e4 {[%emt 0:00:10]} 41. Kd4 {[%emt 0:30:11]} b2 {[%emt 0:30:06]} 42. Bxb2 {[%emt 0:00:36]} Rxb2 {[%emt 0:00:03]} 43. Kxe4 {[%emt 0:01:26]} Rxh2 {[%emt 0:00:04]} 44. Kf4 {[%emt 0:00:16]} Kh7 {[%emt 0:00:05]} 45. Kg3 {[%emt 0:00:29]} Rb2 {[%emt 0:00:01]} 46. Kf4 {[%emt 0:00:14]} g5+ {[%emt 0:00:01]} 47. Ke4 {[%emt 0:00:44]} Kg6 {[%emt 0:00:02]} 48. Ke3 {[%emt 0:00:10]} f5 {[%emt 0:00:03]} 49. Kf3 {[%emt 0:00:06]} g4+ {[%emt 0:00:09]} 50. Kf4 {[%emt 0:00:08]} Rf2+ {[%emt 0:00:04]} 51. Kg3 {[%emt 0:00:12]} Rf3+ {[%emt 0:00:04]} 52. Kg2 {[%emt 0:00:05]} Ra3 {[%emt 0:00:04]} 53. Kf2 {[%emt 0:00:08]} f4 {[%emt 0:00:05]} 54. Kg2 {[%emt 0:00:04]} Kg5 {[%emt 0:00:02]} 55. Kf2 {[%emt 0:00:08]} g3+ {[%emt 0:00:07]} 56. Kg2 {[%emt 0:00:04]} Kg4 {[%emt 0:00:07]} 57. Kg1 {[%emt 0:00:05]} f3 {[%emt 0:00:05]} 58. Kf1 {[%emt 0:00:11]} Rb3 {[%emt 0:00:02]} 59. Rd1 {[%emt 0:00:33]} Rb1 {[%emt 0:00:04]} 60. Re1 {[%emt 0:00:07]} a1=Q 0-1

[Event "FIDE WY-U16 Olympiad 2022"]
[Site "Nakhchivan"]
[Date "2022.10.03"]
[Round "2.30"]
[White "Israilov, Agil"]
[Black "Nwedo, Khodani"]
[Result "1-0"]
[ECO "B76"]
[WhiteElo "1883"]
[BlackElo "1356"]
[Annotator "NA RC COMBH"]
[PlyCount "53"]
[EventDate "2022.10.02"]
[EventType "team-tourn"]
[EventCountry "AZE"]
[SourceTitle "playchess.com"]
[Source "ChessBase"]
[SourceQuality "1"]
[WhiteTeam "Azerbaijan"]
[BlackTeam "South Africa"]
[WhiteTeamCountry "AZE"]
[BlackTeamCountry "RSA"]
[TimeControl "40/5400+30:1800+30"]

1. e4 {[%emt 0:00:26]} c5 {[%emt 0:00:18]} 2. Nf3 {[%emt 0:00:20]} d6 {[%emt 0:00:08]} 3. d4 {[%emt 0:00:08]} cxd4 {[%emt 0:00:10]} 4. Nxd4 {[%emt 0:00:07]} Nf6 {[%emt 0:00:07]} 5. Nc3 {[%emt 0:00:06]} g6 {[%emt 0:00:21]} 6. Be3 {[%emt 0:00:29]} Bg7 {[%emt 0:00:10]} 7. f3 {[%emt 0:00:11]} O-O {[%emt 0:00:13]} 8. Qd2 {[%emt 0:00:11]} Nc6 {[%emt 0:00:14]} 9. g4 {[%emt 0:01:10]} Be6 {[%emt 0:00:50]} 10. Nxe6 {[%emt 0:01:08]} fxe6 {[%emt 0:00:09]} 11. O-O-O {[%emt 0:00:05]} Ne5 {[%emt 0:02:14]} 12. Be2 {[%emt 0:00:20]} Qa5 {[%emt 0:10:04]} 13. g5 {[%emt 0:31:44]} Nfd7 {[%emt 0:22:26]} 14. f4 {[%emt 0:01:31]} Nc6 {[%emt 0:01:13]} 15. e5 {[%emt 0:03:23]} d5 {[%emt 0:04:29]} 16. Bg4 {[%emt 0:01:34]} Kf7 {[%emt 0:14:00]} 17. Qg2 {[%emt 0:07:00]} Nb6 {[%emt 0:07:21]} 18. Qh3 {[%emt 0:06:30]} Nd8 {[%emt 0:05:34]} 19. f5 {[%emt 0:14:04]} exf5 {[%emt 0:08:46]} 20. Bxf5 {[%emt 0:00:37]} gxf5 {[%emt 0:00:31]} 21. Qxh7 {[%emt 0:01:04]} Rh8 {[%emt 0:01:01]} 22. Qxf5+ {[%emt 0:12:04]} Kg8 {[%emt 0:02:53]} 23. Qg6 {[%emt 0:00:32]} Nc6 {[%emt 0:01:59]} 24. Qe6+ {[%emt 0:00:15]} Kf8 {[%emt 0:01:17]} 25. Rhf1+ {[%emt 0:00:05]} Ke8 {[%emt 0:00:22]} 26. Qf7+ {[%emt 0:00:10]} Kd7 {[%emt 0:00:36]} 27. Bxb6 {[%emt 0:00:07]} 1-0

[Event "FIDE WY-U16 Olympiad 2022"]
[Site "Nakhchivan"]
[Date "2022.10.03"]
[Round "2.31"]
[White "Price, Rowan Daelen"]
[Black "Alizada, Pasham"]
[Result "1/2-1/2"]
[ECO "C00"]
[WhiteElo "1329"]
[BlackElo "1664"]
[Annotator "NA RC COMBH"]
[PlyCount "67"]
[EventDate "2022.10.02"]
[EventType "team-tourn"]
[EventCountry "AZE"]
[SourceTitle "playchess.com"]
[Source "ChessBase"]
[SourceQuality "1"]
[WhiteTeam "South Africa"]
[BlackTeam "Azerbaijan"]
[WhiteTeamCountry "RSA"]
[BlackTeamCountry "AZE"]
[TimeControl "40/5400+30:1800+30"]

1. e4 {[%emt 0:00:04]} e6 {[%emt 0:00:10]} 2. c4 {[%emt 0:00:19]} d5 {[%emt 0:00:05]} 3. exd5 {[%emt 0:00:10]} exd5 {[%emt 0:00:04]} 4. cxd5 {[%emt 0:00:13]} Nf6 {[%emt 0:00:05]} 5. Nc3 {[%emt 0:00:29]} Be7 {[%emt 0:00:33]} 6. Nf3 {[%emt 0:00:54]} O-O {[%emt 0:00:14]} 7. Bc4 {[%emt 0:01:27]} Nbd7 {[%emt 0:01:01]} 8. O-O {[%emt 0:03:51]} Nb6 {[%emt 0:03:24]} 9. Bb3 {[%emt 0:02:54]} Nbxd5 {[%emt 0:10:03]} 10. d4 {[%emt 0:03:24]} Bf5 {[%emt 0:03:39]} 11. Re1 {[%emt 0:07:28]} c6 {[%emt 0:20:06]} 12. Re5 {[%emt 0:11:08]} Bg6 {[%emt 0:05:02]} 13. Bg5 {[%emt 0:07:34]} Nxc3 {[%emt 0:07:36]} 14. bxc3 {[%emt 0:01:55]} h6 {[%emt 0:04:02]} 15. Bh4 {[%emt 0:07:58]} Re8 {[%emt 0:06:41]} 16. Qe2 {[%emt 0:15:16]} Bd6 {[%emt 0:02:46]} 17. Bxf6 {[%emt 0:07:07]} gxf6 {[%emt 0:00:10]} 18. Rxe8+ {[%emt 0:01:07]} Qxe8 {[%emt 0:00:02]} 19. Qd2 {[%emt 0:01:07]} Kg7 {[%emt 0:01:04]} 20. Nh4 {[%emt 0:02:49]} Qd7 {[%emt 0:02:16]} 21. Re1 {[%emt 0:02:36]} Re8 {[%emt 0:00:21]} 22. Nxg6 {[%emt 0:02:21]} fxg6 {[%emt 0:00:34]} 23. g3 {[%emt 0:02:01]} Re7 {[%emt 0:06:25]} 24. Re3 {[%emt 0:03:06]} h5 {[%emt 0:03:44]} 25. Qe2 {[%emt 0:01:51]} Rxe3 {[%emt 0:01:13]} 26. Qxe3 {[%emt 0:00:50]} Qe7 {[%emt 0:01:54]} 27. Kf1 {[%emt 0:03:49]} Qxe3 {[%emt 0:00:35]} 28. fxe3 {[%emt 0:00:10]} f5 {[%emt 0:00:02]} 29. Ke2 {[%emt 0:03:08]} Kf6 {[%emt 0:00:23]} 30. Kf3 {[%emt 0:01:40]} Kg5 {[%emt 0:02:58]} 31. Bf7 {[%emt 0:01:56]} Kf6 {[%emt 0:01:43]} 32. Bb3 {[%emt 0:00:20]} Kg5 {[%emt 0:01:23]} 33. Bf7 {[%emt 0:00:33]} Kf6 {[%emt 0:00:44]} 34. Bb3 {[%emt 0:00:32]} 1/2-1/2